{"text_format":"1","workbook":"xlsx","n_sheets":4,"sheets":["Instructions","Fill ACR","Board Result","Sheet3"],"not_rendered":{"charts":0,"images":2,"macros":1,"external_links":1,"defined_names":24,"comments":0,"pivot_tables":0},"unopened":[],"bounds":{"document_bytes":16777216,"sheet_cells":100000,"rows_first":2000,"rows_last":500,"rows_between":2000,"halvings":0,"cell_chars":16384,"cell_head_chars":4096},"cells_cut":0,"cells_raw":0,"read":"whole","date_system":"1900"}

{"sheet":"Instructions","index":0,"n_rows":12,"n_cols":2,"rows_kept":12,"cut":false,"hidden":false,"merged":[[0,0,0,1]]}
["ey.sI.Awr Brn leI jrrI hdwieqW"]
[1,"quhwfy kMipaUtr qy AnmolilpI PONt hoxw cwhIdw hY (USE Anmolipi Font)"]
[2,"AyYksl 2010 jW ies qoN aupr dw AwiPs dI vrqoN krO"]
[3,"PwieL Kulx qy Enabed Content And Enable Editing btn jo aupr tUlbwr dy hyTw nzr Awvygw aus nUM kil`k krO qW hI shI Awautpu`t AwvygI . jy Aijhw krn qoN rih igAw qW Pweil nUM dubwrw bMd krky aupn kro"]
[4,"qsI Fill ACR sIt qy  kil`k krky auQy isrP pIly Kwny hI Brny hn"]
[5,"Awpxw fwtw iP`l krn qo bwAd iesy swPt kwpI Pwiel qy mu`KI qo nMbr lgvw skdy ho"]
[6,"lwst ivc qusI pIfI.AYP dy rUp ivc syv kr skdy ho"]
[7,"ipRMt k`Fx leI hryk puj leI pyj vwiej rwiet swief btn idqy hn (qW jo pyj dy A`gy ipCy ipMRt k`Fy jw skx_"]
[8,"qusI iksy qrW dy suJwA Aqy PIfbYk leI eImyl AweI. abhi072011@gmail.com qy spMrk kr skdy ho"]
[7,"iesy qrW dy hor swPtvyAr Pwrm Aid pRwpq krn leI swfI vYbswiet nUM ivijt kro "]
[8,"Subscribe Our Youtube Channel for Details Video"]
[9,"Follow Us On Facebook"]

{"sheet":"Fill ACR","index":1,"n_rows":135,"n_cols":15,"rows_kept":135,"cut":false,"hidden":false,"merged":[[116,1,116,12],[115,5,115,9],[110,2,110,11],[104,2,104,9],[105,2,105,9],[106,2,106,9],[107,2,107,9],[108,2,108,9],[109,2,109,9],[111,1,111,12],[113,1,113,9],[113,10,113,11],[95,2,95,9],[96,2,96,9],[97,2,97,9],[98,2,98,9],[99,2,99,9],[102,2,102,9],[103,2,103,9],[114,1,114,11],[115,10,115,11],[96,1,99,1],[101,2,101,11],[89,2,89,9],[90,2,90,9],[91,2,91,9],[92,2,92,9],[93,2,93,9],[94,2,94,9],[60,2,60,9],[70,2,70,9],[71,2,71,9],[5,10,5,12],[9,5,9,7],[5,2,5,3],[46,2,46,12],[86,2,86,9],[87,2,87,9],[88,2,88,9],[33,2,33,5],[33,7,33,12],[34,1,34,6],[58,2,58,9],[73,2,73,9],[49,2,49,12],[50,11,50,12],[51,11,51,12],[52,2,52,12],[41,2,41,7],[41,10,44,12],[42,2,42,6],[43,3,43,6],[50,2,50,10],[37,1,40,1],[15,2,15,7],[57,1,60,1],[11,8,11,12],[5,4,5,7],[8,8,8,12],[15,8,15,12],[36,2,36,7],[36,10,40,12],[119,1,131,1],[120,2,121,5],[120,7,120,12],[121,7,121,12],[124,2,125,5],[124,7,124,12],[125,7,125,12],[128,2,129,5],[128,7,128,12],[129,7,129,12],[131,2,131,12],[118,2,118,12],[84,2,84,9],[85,2,85,9],[9,2,9,4],[5,8,5,9],[13,2,13,7],[8,2,8,7],[0,1,0,12],[1,1,1,12],[2,1,2,7],[2,8,2,9],[2,10,2,12],[10,2,10,4],[10,5,10,7],[12,8,12,9],[12,10,12,12],[11,2,11,7],[3,1,3,3],[3,4,3,12],[4,2,4,7],[4,8,4,12],[12,2,12,4],[12,5,12,7],[10,8,10,9],[10,10,10,12],[9,8,9,9],[9,10,9,12],[6,2,6,7],[6,8,6,12],[7,2,7,7],[7,8,7,12],[83,2,83,9],[55,1,55,12],[44,3,44,6],[74,2,74,9],[75,2,75,9],[76,2,76,9],[77,2,77,9],[78,2,78,9],[79,2,79,9],[80,2,80,9],[81,2,81,9],[56,2,56,9],[69,2,69,9],[67,2,67,9],[68,2,68,9],[54,1,54,12],[59,2,59,9],[72,2,72,9],[82,2,82,9],[37,2,37,6],[38,2,38,6],[57,12,60,12],[63,12,68,12],[13,8,13,12],[14,2,14,7],[14,8,14,12],[18,8,18,12],[22,2,22,12],[23,2,23,12],[19,2,19,7],[32,8,32,12],[69,12,74,12],[76,12,77,12],[78,12,83,12],[84,12,87,12],[88,12,91,12],[92,12,94,12],[96,11,99,11],[96,12,99,12],[16,2,16,7],[16,8,16,12],[17,2,17,7],[17,8,17,12],[63,2,63,9],[64,2,64,9],[65,2,65,9],[66,2,66,9],[61,2,61,9],[51,2,51,10],[57,2,57,9],[18,2,18,7],[26,12,31,12],[31,3,31,6],[19,8,19,12],[20,2,20,6]]}
[null,"kMipaUtr ivSy dy AiDAwpk  dI slwnw mulWkx irport \n(ey.sI.Awr.-11)"]
[null,"swl : 2022-23"]
[null,"Bwg - a   mu~FlI jwxkwrI",null,null,null,null,null,null,"XU fweIs kof :  "]
[null,"skUl dw nW Aqy ijlHw :  "]
[null,1,"AiDAwpk/AiDAwpkW dw nwm"]
[null,2,"Ahudw",null,"kMipaUtr AiDAwpk",null,null,null,"E-Punjab ID No. :"]
[null,3,"ipqw dw nW"]
[null,4,"ilMg (iesqrI / purS)"]
[null,5,"jnm imqI"]
[null,6,"ADwr kwrf nMbr",null,null,null,null,null,"pYn nM:"]
[null,7,"spMrk nMbr :   mobwiel nM:",null,null,null,null,null,"eI.myl AweI.fI."]
[null,8,"mu~FlI qnKwh / gRyf py",null,null,null,null,null,"10300-34800 + 5000"]
[null,9,"sInIAwrqw nMbr",null,null,"NA",null,null,"jI.pI.AYP.nM:/prwn",null,"NA"]
[null,10,"syvw kwfr (styt/ijlHw/jW hor)",null,null,null,null,null,"styt"]
[null,11,"is~iKAw ivBwg iv~c hwzr hox dI imqI"]
[null,12,"mOjUdw kwfr qy hwzr hox dI imqI"]
[null,13,"mOjUdw stySn qy hwzr hox dI imqI"]
[null,14,"syvw mukq hox dI imqI"]
[null,15,"ividAk Xogqw"]
[null,16,"irport krn vwly AiDkwrI ADIn syvw krn dw smW kwl"]
[null,17,"AiDAwpk v~loN kYlMfr swl iv`c leIAW Cu~tIAW: ",null,null,null,null,"ieq: Cu~tI",null,"mYfIkl",0,"kmweI",0]
[null,"               Bwg -A  (pRI-mulMkx SIt)"]
[null,"1.","AiDAwpk duAwrw sbMDq swl dOrwn inBweIAW ivSyS syvwvW dw sMKyp vrxn :"]
[]
[null,"2.","AiDAwpk dy nqIjy"]
[null,null,"lVIN nM:","jmwq","pVwieAw \nivSw","iemiqhwn iv~c bYTy ivid: dI igxqI","pws ivid: dI igxqI","pws \n %","borf dI pws %","vwDw / Gwtw","60 % qoN v~D AMk pRwpq ivid:","75 % qoN v~D AMk pRwpq ivid:","Bwg e Anuswr gxnW kIqy 200 iv~coN AMk",null,"Marks"]
[null,null,1,"11th",null,null,null,{"$f":"IFERROR(ROUND((G27/F27)*100,2),\"\")","v":""},null,{"$f":"IF(H27=\"\",\"\",H27-I27)","v":""},null,null,{"$f":"IFERROR(O27+O28+O29+O30,0)","v":0},null,{"$f":"IFERROR(ROUND(IF(H32>I32,140,((H32/I32)*140)),0),\"\")","v":""}]
[null,null,2,"8th",{"$f":"IFERROR(VLOOKUP(A28,INDIRECT(#REF!),2,FALSE),\"\")","v":""},null,null,{"$f":"IFERROR(ROUND((G28/F28)*100,2),\"\")","v":""},null,{"$f":"IF(H28=\"\",\"\",H28-I28)","v":""},null,null,null,null,{"$f":"IF(H32=100,20,ROUND(IF(H32>I32,(J32*20)/(100-I32),0),0))","v":0}]
[null,null,3,{"$f":"IFERROR(VLOOKUP(#REF!,Sheet3!B4:D51,3,FALSE),\"\")","v":""},{"$f":"IFERROR(VLOOKUP(A29,INDIRECT(#REF!),2,FALSE),\"\")","v":""},null,null,"",{"$f":"IFERROR(VLOOKUP(A29,INDIRECT(#REF!),3,FALSE),\"\")","v":""},{"$f":"IF(H29=\"\",\"\",H29-I29)","v":""},null,null,null,null,{"$f":"IF((K32)>20,20,(K32))","v":0}]
[null,null,4,{"$f":"IFERROR(VLOOKUP(#REF!,Sheet3!B5:D52,3,FALSE),\"\")","v":""},{"$f":"IFERROR(VLOOKUP(A30,INDIRECT(#REF!),2,FALSE),\"\")","v":""},null,null,"",{"$f":"IFERROR(VLOOKUP(A30,INDIRECT(#REF!),3,FALSE),\"\")","v":""},{"$f":"IF(H30=\"\",\"\",H30-I30)","v":""},null,null,null,null,{"$f":"IF((L32)>10,20,(L32*2))","v":0}]
[null,null,5,{"$f":"IFERROR(VLOOKUP(#REF!,Sheet3!B6:D52,3,FALSE),\"\")","v":""},{"$f":"IFERROR(VLOOKUP(A31,INDIRECT(#REF!),2,FALSE),\"\")","v":""},null,null,"",{"$f":"IFERROR(VLOOKUP(A31,INDIRECT(#REF!),3,FALSE),\"\")","v":""},{"$f":"IF(H31=\"\",\"\",H31-I31)","v":""}]
[null,null,null,"ku~l/AOsq pRqISq",null,null,null,{"$f":"IFERROR(AVERAGE(H27:H31),0)","v":0},{"$f":"IFERROR(AVERAGE(I27:I31),0)","v":0},{"$f":"IFERROR(AVERAGE(J27:J31),0)","v":0},{"$f":"IFERROR(ROUND(AVERAGE(K27:K31),0),0)","v":0},{"$f":"IFERROR(ROUND(AVERAGE(L27:L31),0),0)","v":0}]
[null,null,null,null,null,null,null,null,"……………………………"]
[null,null,null,null,null,null,null,"AiDAwpk dy hsqwKr"]
[null,"Bwg e : AiDAwpk dI mulWkx dI ivDI:",null,null,null,null,null,"ku~l AMk =200"]
[]
[null,1,"borf dy nqIjy dy brwbr nqIjw Awaux qy pRwpq AMk",null,null,null,null,null,"…..140 AMk",null,{"$f":"\" ies Bwg dy pRwpq AMk = \" & O27","v":" ies Bwg dy pRwpq AMk = "}]
[null,2,"jykr nqIjw borf dI pws pRqISqqw qoN G~t hY :"]
[null,null,"nqIjw cwrt iv~c ivid: dI pws pRqISqw",null,null,null,null,null,"…..a"]
[null,null,"borf dI Aosq pws pRqISqw",null,null,null,null,null,"…..A"]
[null,null,"AiDAwpk nUM imlx vwly AMk (140 AMkW iv~coN)",null,null,null,null,null,"…..140  X a/A"]
[null,3,"jykr nqIjw borf dI pws pRqISqqw qoN v~D hY qW :",null,null,null,null,null,"……..20 AMk",null,{"$f":"\" ies Bwg dy pRwpq AMk = \" & O28","v":" ies Bwg dy pRwpq AMk = 0"}]
[null,null,"20 AMkW iv~coN AMk dyx dw sUqr :"]
[null,null,null,"AiDAwpk dI borf dI pws % qoN v~D nqIjw X 20"]
[null,null,null,"100-bofr dw AOsq nqIjw",null,null,null,"(100 % nqIjy leI = 160 AMk)"]
[]
[null,null,"(AiDAwpk kol borf dI jmwq nw hox dI sUrq iv~c CyvIN Aqy s~qvIN dy slwnw nqIijAW dy A~TvIN sRyxI dy ivBwg dy nqIijAW nwl, nOvIN dy nqIijAW dI dsvIN dy pMjwb skUL is~iKAw bofr dy nqIijAW nwl Aqy 11vIN SRyxI dI, 12vIN SRyxI dy pMjwb skUl is`~iKAw boorf dy nqIijAW nwl qulxw kIqI jwvy [)"]
[]
[null,4,{"$f":"\"guxwqmk is~iKAw leI pRwpq AMk  \"&O29+O30","v":"guxwqmk is~iKAw leI pRwpq AMk  0"},null,null,null,"……ku~l AMk =40"]
[null,null,"not : borf dIAw ijAwdw jmwqW hox qy AOsq k~F leI jwvy["]
[null,null,"sbMDq ivSy iv~c 60% AMkW qoN ijAwdw lYx vwly hryk ivid: leI ie~k AMk Aqy v~D qoN v~D 20 AMk id~qy jw skdy hn[",null,null,null,null,null,null,null,null,{"$f":"\"pRwpq AMk = \" & O29","v":"pRwpq AMk = 0"}]
[null,null,"sbMDq ivSy iv~c 75 % AMkW qoN ijAwdw lYx vwly hryk ivid: leI do AMk Aqy v~D qoN v~D 20 AMk id~qy jw skdy hn[",null,null,null,null,null,null,null,null,{"$f":"\"pRwpq AMk = \" & O30","v":"pRwpq AMk = 0"}]
[null,null,"not : 10 qoN G~t ivid: hox qy swry ivid: dy 75 % qoN v~D AMk hox qy 40 AMk id~qy jw skdy hn["]
[]
[null,"not : jykr AiDAwpk Bwg-e dy ku~l AMkW dw 40% AMk pRwpq krdw hY qW hI Akwdimk Aqy sih-Akwdimk gqIivDIAW dy \n      pRwpq kIqy Amk joVy jwxgy["]
[null,"Bwg s. irport krn vwly AiDkwrI v~loN mulWkx"]
[null,"lVI nM:","Akwdimk Aqy sihAkwdimk gqIivDIAW",null,null,null,null,null,null,null,"ku~l AMk","v~D qoN v~D kul AMk","pRwpq AMk"]
[null,1,"AiDAwpk v~loN skUl iv`c b~icAW dI igxqI iv~c vwDw krn leI kIqy auprwly",null,null,null,null,null,null,null,null,20]
[null,null,"pRweIvyt skUl iv`coN G~to G`t do ividAwrQI srkwrI skUL iv`c dwKl krvwaux qy\"",null,null,null,null,null,null,null,10]
[null,null,"skUl iv`c G~to-G~t 5 ividAwrQI dwKl krvwaux qy",null,null,null,null,null,null,null,10]
[null,null,"AiDAwpk duAwrw pVHwey jw rhy ividAwrQIAW dI igxqI iv~c G~to G~t 2 % dw vwDw krn qy",null,null,null,null,null,null,null,10]
[null,2,"AiDAwpk dy Awpxy b~cy srkwrI skUl iv`c pVHdy hox qy (pRI pRweImrI qoNN bwrvIN q~k) \nnot : \n(a) ijnHW AiDAwpkW dI sMqwn nhIN  hY jW Ajy kuAwry/kuAwrIAW hn, auhnW AiDAwpkW nUM 10 nMbr Alwt kIqy jwx [\n(A) ijnHW AiDAwpkW dy b~cy 10+2 q~k is~iKAw pRwpq krn dI aumr lMG cu~ky hn, auhnW AiDAwpkW nuM vI 10 nMbr Alwt kIqy jwx [ \n",null,null,null,null,null,null,null,10,10]
[]
[null,3,"AiDAwpn kwrz",null,null,null,null,null,null,null,"",20]
[null,"","inrMqr Aqy imqI b~D kwpIAW dI jWc",null,null,null,null,null,null,null,4,""]
[null,"","ivSy nwl sbMDq not bu~k iv`c suMdr Aqy AwkrSk ic~qr bxwaux leI kIqy auprwilAW leI",null,null,null,null,null,null,null,4,""]
[null,"","AiDAwpk fwierI",null,null,null,null,null,null,null,4,""]
[null,"","svyr dI sBw iv`c BwSx (mhINny iv`c G~to-G~t do vwrI)",null,null,null,null,null,null,null,4,""]
[null,"","AiDAwpk v~loN klws tYst lYx Aqy irkwrf myntyn krn qy (mhINny iv`c G~to-G~t do vwrI)",null,null,null,null,null,null,null,4,""]
[null,4,"ivSyS ijMmyvwrI/ieMcwrjiSp",null,null,null,null,null,null,null,"",10]
[null,"","skwaUt,AYn.sI.sI., AYn.AYs.AYs. ieMcwrz",null,null,null,null,null,null,null,2,""]
[null,"","dwKlw Kwrz ieMcwrz",null,null,null,null,null,null,null,2,""]
[null,"","hwaUs ieMcwrz",null,null,null,null,null,null,null,2,""]
[null,"","imf-fy-mIl ieMcwrz",null,null,null,null,null,null,null,2,""]
[null,"","tweIm tybl ieMcrj",null,null,null,null,null,null,null,2,""]
[null,5,"ivSy nwl sbMDq v~K v~K idvs mnwauxw Aqy irkwrf myntyn krn qy",null,null,null,null,null,null,null,5,5]
[null,6,"skUl dw mYgzIn iqAwr krnw",null,null,null,null,null,null,null,"",10]
[null,"","AiDAwpk v~loN skUl dy mYgzIn iqAwr krn iv`c Aqy pRkwiSq krvwaux iv`c sihXog dyx qy",null,null,null,null,null,null,null,10,""]
[null,7,"sYSn dOrwn pRsMsw p~qr/Avwrf pRwpq krn qy",null,null,null,null,null,null,null,"",10]
[null,"","blwk/ qihsIl p~Dr qy",null,null,null,null,null,null,null,2,""]
[null,"","ijlHw p~Dr qy",null,null,null,null,null,null,null,3,""]
[null,"","styt p~Dr qy",null,null,null,null,null,null,null,5,""]
[null,"","ivBwg dy au~c AiDkwrIAW qoN ivSyS pRsMsw p~qr pRwpq krn qy",null,null,null,null,null,null,null,10,""]
[null,"","nYSnl Avwrf pRwpq krn qy",null,null,null,null,null,null,null,10,""]
[null,8,"AiDAwpk dw ividAwrQIAW dy mipAW nwl rwbqw",null,null,null,null,null,null,null,"",5]
[null,"","SoSl mIfIAw rwhIN",null,null,null,null,null,null,null,1,""]
[null,"","skUl iv`c mIitMgW rwhIN",null,null,null,null,null,null,null,1,""]
[null,"","vtsAYp gru~p rwhIN",null,null,null,null,null,null,null,3,""]
[null,9,"AiDAwpk dI kimaUintI v~loN Awpxy skUl iv`c pwey Xogdwn dI SlwGw",null,null,null,null,null,null,null,"",5]
[null,"","SoSl mIfIAw rwhIN",null,null,null,null,null,null,null,2,""]
[null,"","ipRMt mIfIAw rwhIN",null,null,null,null,null,null,null,3,""]
[null,"","ielYktRoinks mIfIAw rwhIN",null,null,null,null,null,null,null,5,""]
[null,10,"AiDAwpk v~loN isrP is~iKAw nwl sbMDq skwrwqimk AwrtIkl/lyK ipRMt mIfIAw iv`c pRkwiSq hox qy",null,null,null,null,null,null,null,"",10]
[null,"","hr ie~k AwrtIkl/lyK pRkwiSq hox qy 01 nMbr",null,null,null,null,null,null,null,5,""]
[null,"","is~iKAw Kyqr nwl sbMDq ie~k ikqwb pRkwSq hoxy qy",null,null,null,null,null,null,null,10,""]
[null,11,"skUL muKI jW ivBwg dy au~c AiDkwrIAW v~loN sONpy gey ivSyS kwrz nUM sPlqw pUrvk nypry cwVn qy",null,null,null,null,null,null,null,10,10]
[null,12,"AiDAwpkW duAwrw skUl dI ibhqrI leI kimaUintI dy sihXog nwl kIqy gey kMmW dw vyrvw",null,null,null,null,null,null,null,"",10]
[null,null,"iek klws rUm dw suMdrIkrn jW buinAwdI FWcw iqAwr krn jW krvwaux qy",null,null,null,null,null,null,null,5]
[null,null,"skUL dI iemwrq dw suMdrIkrn jW buinAwdI FWcw iqAwr krn jW krvwaux qy",null,null,null,null,null,null,null,10]
[null,null,"skUl iv`c vyst mtIrIAl nUM vrqoN Xog bxwaux leI kIqy gey auprwilAW qy",null,null,null,null,null,null,null,5]
[]
[]
[null,13,"kMipaUtr qy kMm krn dI pRvInqw",null,null,null,null,null,null,null,5,5]
[null,14,"AiDAwpk duAwrw Awpxy Kyqr iv`c koeI ivSyS nwmxw K~tx qy (nvW swPtvyAr/mobweIl Ayp iejwd krn qy)",null,null,null,null,null,null,null,20,20]
[null,15,"AiDAwpk dI AwpxI Su~D kMipaUtr tweIipMg (AMgryzI Aqy pMjwbI) iv`c muhwrq hox qy",null,null,null,null,null,null,null,10,10]
[null,16,"ividAwrQIAW dy ivSy nwl sbMDq mukwbly (teIipMg kuiez Awid) krvwaux qy",null,null,null,null,null,null,null,5,5]
[null,17,"nmUny dI kMipaUtr lYb ivkisq krn Aqy r~K rKwA leI",null,null,null,null,null,null,null,10,10]
[null,18,"jmwq dy slybl Anuswr ividAwrQIAW nUM kMipaUtr/ieMtrnYt nwl sbMDq gqIivDIAW krvwaux qy",null,null,null,null,null,null,null,5,5]
[null,19,"ivSy nwl sbMDq iksy pROPYSnl SKSIAq nwl ividAwrQIAW nUM rU-brU krvwaux qy",null,null,null,null,null,null,null,10,10]
[null,20,"iksy kwlz/XunIvristI dy kMipaUtr ivBwg dI ivizt krvwaux qy",null,null,null,null,null,null,null,10,10]
[null,null,"Bwg s (Akwdimk Aqy sihAkwdimk gqIivDIAW)dy ku~l pRwpq AMk",null,null,null,null,null,null,null,null,null,{"$f":"IFERROR(SUM(M58:M110),\"\")","v":0}]
[null,"not : skUl muKI sbMDq AiDAwpk qoN ey.sI.Awr. iv~c drz Akwdimk qy sih Akwdimk gqIivDIAW sbMDI pRwpqIAW/krvwey kMmW bwry ilKqI rUp iv~c pRwpq krnw XkInI bxwaux["]
[]
[null,"Bwg e (200 AMk) + Bwg s (200 AMk) = 400 AMkW iv`coN pRwpq AMkW dw joV : ",null,null,null,null,null,null,null,null,{"$f":"IFERROR(IF(M111<1,\"\",N114),\"\")","v":""},null,null,{"$f":"M111+M27","v":0}]
[null,"not : AiDAwpk v~loN Bwg e Aqy Bwg s iv~coN pRwpq AMkW nUM 100 AMkW iv`coN qbdIl kr ilAw jwvy"]
[null,null,null,null,null,"100 AMkW iv`coN pRwpq AMk ",null,null,null,null,{"$f":"IFERROR(ROUND((K114/4),0),\"\")","v":""}]
[null,"(not : auprokq AMk skUl muKI v~loN sbMDq gqIivDI dy irkwrf dy Adwr qy id~qy jwxgy[ ivBwg v~loN lgweI geI ifaUtI dyx qoN ienkwr krn vwly AiDAwpk dI ey.sI.Awr. iv~c ies dw ieMdrwz kIqw jwvy)"]
[]
[null,null,"AiDAwpk dI drjwbMdI :\n1. 81 qoN 100 mYirt q~k = au~qm   2. 61 qoN 80 mYirt q~k = bhuq A~Cw     3. 41 qoN 60 mYirt q~k = A~Cw\n4. 21 qoN 40 mYirt q~k = AOsq    5. 0 qoN 20 mYirt q~k = AOsq qoN G~t"]
[]
[null,null,{"$f":"\"drjwbMdI : =   \"&IFERROR(IF(K116>80,\"\",IF(K116>80,\"au`qm\",IF(K116>60,\"bhuq A`Cw\",IF(K116>40,\"A`Cw\",IF(K116>20,\"Aosq\",IF(K116>1,\"Aosq qoN G`t\",\"\")))))),\"\")","v":"drjwbMdI : =   "},null,null,null,null,"………………………………"]
[null,null,null,null,null,null,null,"irport krn vwly AiDkwrI dy hsqwKr"]
[]
[]
[null,null,"drjwbMdI :",null,null,null,null,"………………………………"]
[null,null,null,null,null,null,null,"rIivaU krn vwly AiDkwrI dy hsqwKr"]
[]
[]
[null,null,"drjwbMdI :",null,null,null,null,"………………………………"]
[null,null,null,null,null,null,null,"pRvwn krn vwly AiDkwrI dy hsqwKr"]
[]
[null,null,{"$f":"\"AiDAwpk nW qy Ahudw/skUl : \" & I5 & \" (\" & E6 & \") - \" & E4","v":"AiDAwpk nW qy Ahudw/skUl :  (kMipaUtr AiDAwpk) - "}]
[]
[]
[null,null,null,null,null,null,null,null,null,null,"www.Teachershelp.in"]

{"sheet":"Board Result","index":2,"n_rows":117,"n_cols":6,"rows_kept":117,"cut":false,"hidden":false,"merged":[[0,0,0,4]]}
["gzikp ;e{b f;Zfynk p'ov\npkoQthA gqhfynk, wkou - 2023 (o?r{bo)\n"]
["Sub Code","Subject","Total ","Pass","%age"]
[1,"GENERAL ENGLISH",296709,279625,94.24,"%"]
[2,"GENERAL PUNJABI",296368,294613,99.4,"%"]
[3,"PUNJAB HISTORY AND CULTURE",341,325,95.3,"%"]
[4,"PUNJABI (ELECTIVE)",54197,53452,98.62,"%"]
[5,"HINDI (ELECTIVE)",18757,18403,98.11,"%"]
[6,"ENGLISH (ELECTIVE)",7154,7053,98.58,"%"]
[7,"URDU",176,174,98.86,"%"]
[19,"SANSKRIT",178,177,99.43,"%"]
[25,"HISTORY",144493,143126,99.05,"%"]
[26,"ECONOMICS",48042,47547,98.96,"%"]
[28,"MATHEMATICS",40285,39918,99.08,"%"]
[31,"POLITICAL SCIENCE",94099,92914,98.74,"%"]
[32,"SOCIOLOGY",23044,22807,98.97,"%"]
[33,"PUBLIC ADMINISTRATION",189,184,97.35,"%"]
[35,"RELIGION",3026,2931,96.86,"%"]
[36,"MUSIC (VOCAL)",1622,1573,96.97,"%"]
[37,"MUSIC (INSTRUMENTAL)",371,368,99.19,"%"]
[38,"MUSIC (TABLA)",17,17,100,"%"]
[39,"GURMAT SANGEET",28,27,96.42,"%"]
[40,"DANCE",36,33,91.66,"%"]
[41,"PHILOSOPHY",76,71,93.42,"%"]
[42,"GEOGRAPHY",12105,11926,98.52,"%"]
[43,"DEFENCE STUDIES",44,19,43.18,"%"]
[44,"PSYCHOLOGY",713,711,99.71,"%"]
[45,"HOME SCIENCE",4407,4282,97.16,"%"]
[46,"DRAWING AND PAINTING",9548,9467,99.15,"%"]
[48,"COMMERCIAL ART",1475,1448,98.16,"%"]
[49,"PHYSICAL EDUCATION & SPORTS",161381,159577,98.88,"%"]
[50,"HISTORY & APPRECIATION OF ART",52,39,75,"%"]
[52,"PHYSICS",45504,45306,99.56,"%"]
[53,"CHEMISTRY",45504,45319,99.59,"%"]
[54,"BIOLOGY",21760,21623,99.37,"%"]
[65,"AGRICULTURE",1801,1763,97.89,"%"]
[66,"MODELLING & SCULPTURE",573,560,97.73,"%"]
[72,"COMPUTER APPLICATION",1976,1954,98.88,"%"]
[73,"COMMERCIAL CROPS",385,383,99.48,"%"]
[74,"LANDSCAPING AND FLORICULTURE",385,381,98.96,"%"]
[75,"POST HARVEST TECHNOLOGY & PRESERVATION",385,378,98.18,"%"]
[92,"FOOD PROCESSING",569,530,93.14,"%"]
[93,"PLANT MANAGEMENT",569,563,98.94,"%"]
[94,"FOOD PACKAGING",569,561,98.59,"%"]
[95,"DRESS MAKING",1019,1004,98.52,"%"]
[96,"COMMERCIAL CLOTHING",1019,999,98.03,"%"]
[97,"UNIT MANAGEMENT",1019,999,98.03,"%"]
[98,"FASHIONED KNITWEAR",450,439,97.55,"%"]
[99,"CIRCULAR KNITTING",450,438,97.33,"%"]
[100,"TEXTILE YARN CALCULATIONS & GARMENT MAKING",450,438,97.33,"%"]
[101,"FABRIC STRUCTURE AND DESIGNING",434,427,98.38,"%"]
[102,"TEXTILE TESTING AND DYEING",434,425,97.92,"%"]
[103,"POWER LOOM MECHANICS AND OPERATIONS",434,425,97.92,"%"]
[104,"TEXTILE DESIGNING AND PRINTING - II",502,497,99,"%"]
[105,"TEXTILE TESTING AND FINISHING",502,497,99,"%"]
[106,"TEXTILE DYEING - II",502,495,98.6,"%"]
[107,"ELEMENTS OF ELECTRICAL TECHNOLOGY",1417,1382,97.53,"%"]
[108,"ELECTRICAL DOMESTIC APPLIANCES - II",1417,1400,98.8,"%"]
[109,"MATERIALS & WORKSHOP PRACTICE - II",1417,1389,98.02,"%"]
[110,"DIGITAL ELECTRONICS AND COMMUNICATION",904,890,98.45,"%"]
[111,"TEST AND MEASURING INSTRUMENTS",904,892,98.67,"%"]
[112,"ELECTRONICS DEVICE AND CIRCUITS",904,880,97.34,"%"]
[113,"ENGINEERING DRAWING - II",372,368,98.92,"%"]
[114,"WORKSHOP PRACTICE - II",372,368,98.92,"%"]
[115,"CONSTRUCTION MATERIAL AND ESTIMATE",372,365,98.11,"%"]
[116,"FITTING AND WELDING",1030,1008,97.86,"%"]
[117,"MACHINE TOOL OPERATION",1030,1003,97.37,"%"]
[118,"MECHANICAL DRAWING - II",1030,1011,98.15,"%"]
[122,"WORKSHOP TECHNOLOGY",369,365,98.91,"%"]
[123,"GARAGE PRACTICE AND MANAGEMENT",369,365,98.91,"%"]
[124,"AUTOMOBILE SUSPENSION AND CONTROLS",369,365,98.91,"%"]
[125,"OBJECT ORIENTED PROGRAMMING IN C++",612,602,98.36,"%"]
[126,"DESK TOP PUBLISHING",612,599,97.87,"%"]
[127,"NETWORKING",612,600,98.03,"%"]
[137,"ON THE JOB TRAINING",12318,12256,99.49,"%"]
[138,"GENERAL FOUNDATION COURSE",10,10,100,"%"]
[139,"ENVIRONMENTAL EDUCATION",296709,293276,98.84,"%"]
[141,"BUSINESS STUDIES-II",33595,33482,99.66,"%"]
[142,"ACCOUNTANCY-II",33594,33283,99.07,"%"]
[144,"FUNDAMENTALS OF E-BUSINESS (C)",17488,17434,99.69,"%"]
[146,"COMPUTER SCIENCE",296709,294886,99.38,"%"]
[150,"MEDIA STUDIES",22,22,100,"%"]
[169,"PRINCIPLES & PRACTICES OF INSURANCE - II",275,269,97.81,"%"]
[170,"INSURANCE LEGISLATION - II",275,270,98.18,"%"]
[171,"INSURANCE SALESMANSHIP - II",275,267,97.09,"%"]
[172,"ADVANCED MANAGEMENT-II",710,695,97.88,"%"]
[173,"MARKETING MANAGEMENT - II",710,701,98.73,"%"]
[174,"SALESMANSHIP - II",710,700,98.59,"%"]
[181,"MANAGEMENT - II",520,516,99.23,"%"]
[182,"TECHNOLOGY & E-COMMERCE - II",520,517,99.42,"%"]
[183,"IMPORT MANAGEMENT",520,517,99.42,"%"]
[187,"BOOK KEEPING - II",288,284,98.61,"%"]
[188,"APPLICATION OF MANAGEMENT",288,283,98.26,"%"]
[189,"CO-OPERATIVE MANAGEMENT - II",288,283,98.26,"%"]
[190,"ELEMENTS OF BOOK KEEPING - II",317,315,99.36,"%"]
[191,"PRINCIPLES OF MANAGEMENT - II",317,315,99.36,"%"]
[192,"FUNDAMENTALS OF INCOME TAX - II",317,316,99.68,"%"]
[196,"RETAIL",3318,3303,99.54,"%"]
[197,"AUTOMOBILE",866,861,99.42,"%"]
[198,"HEALTH CARE",7416,7359,99.23,"%"]
[199,"INFORMATION TECHNOLOGY / INFORMATION TECHNOLOGY ENABLED SERVICES",6423,6343,98.75,"%"]
[201,"BEAUTY AND WELLNESS",7640,7591,99.35,"%"]
[202,"TRAVEL AND TOURISM",1043,1032,98.94,"%"]
[203,"PHYSICAL EDUCATION AND SPORTS",649,646,99.53,"%"]
[204,"AGRICULTURE (NSQF)",1974,1949,98.73,"%"]
[206,"APPAREL (NSQF)",2456,2431,98.98,"%"]
[207,"CONSTRUCTION",1783,1757,98.54,"%"]
[208,"PLUMBING",1703,1685,98.94,"%"]
[209,"NATIONAL CADET CORPS",514,437,85.01,"%"]
[210,"WELCOME LIFE",296709,295169,99.48,"%"]
[211,"OFFICE MANAGEMENT-II",1594,1580,99.12,"%"]
[212,"TYPOGRAPHY-II (ENGLISH/PUNJABI)",1594,1574,98.74,"%"]
[213,"ACCOUNTING AND E-COMMERCE",1157,1146,99.04,"%"]
[214,"SHORTHAND-II (ENGLISH/PUNJABI)",437,433,99.08,"%"]
[215,"MANAGERIAL ECONOMICS AND STATISTICS",552,545,98.73,"%"]
[216,"ADVANCES AND FOREIGN EXCHANGE",552,544,98.55,"%"]
[217,"INTRODUCTION TO COMPUTER APPLICATIONS",552,544,98.55,"%"]
[218,"POWER",193,189,97.92,"%"]

{"sheet":"Sheet3","index":3,"n_rows":8,"n_cols":4,"rows_kept":8,"cut":false,"hidden":true,"merged":[]}
[null,"Class",null,"Class P"]
[null,"6th","Middle","ਛੇਵੀਂ"]
[null,"7th","Middle","ਸੱਤਵੀਂ"]
[null,"8th","Middle","ਅੱਠਵੀਂ"]
[null,"9th","Matric","ਨੌਵੀਂ"]
[null,"10th","Matric","ਦਸਵੀਂ"]
[null,"11th","Secondary","10+1 "]
[null,"12th","Secondary","10+2"]